lending/lending_fUSD_20241005
["ID","MTS","AMOUNT","RATE_DAILY","PERIOD"]
[339893814,1728147049345,-500.0,0.00038356,30]
[339893815,1728147049354,-500.0,0.00038356,30]
[339893816,1728147049363,-605.78,0.00038356,30]
[339893817,1728147049373,-534.83,0.00038356,30]
[339893818,1728147049382,-540.58,0.00038356,30]
[339893819,1728147049391,-1181.15,0.00038356,30]
[339893820,1728147049401,-500.0,0.00038356,30]
[339893821,1728147049410,-421.03424534,0.00038356,30]
[339893822,1728147049419,-500.0,0.00038356,30]
[339893823,1728147049428,-567.65,0.00038356,30]
[339893824,1728147049437,-602.72,0.00038356,30]
[339893825,1728147049446,-942.98,0.00038356,30]
[339893826,1728147049455,-500.0,0.00038356,30]
[339893827,1728147049464,-500.0,0.00038356,30]
[339893828,1728147049474,-739.94,0.00038356,30]
[339893829,1728147049483,-500.0,0.00038356,30]
[339893830,1728147049493,-500.0,0.00038356,30]
[339893831,1728147049502,-960.92,0.00038356,30]
[339893832,1728147049511,-500.0,0.00038356,30]
[339893833,1728147049521,-1122.04,0.00038356,30]
[339893834,1728147049530,-500.0,0.00038356,30]
[339893835,1728147049539,-1176.15,0.00038356,30]
[339893836,1728147049549,-500.0,0.00038356,30]
[339893837,1728147049558,-1087.37,0.00038356,30]
[339893838,1728147049567,-500.0,0.00038356,30]
[339893839,1728147049576,-500.0,0.00038356,30]
[339893840,1728147049585,-500.0,0.00038356,30]
[339893841,1728147049595,-500.0,0.00038356,30]
[339893842,1728147049604,-500.0,0.00038356,30]
[339893843,1728147049614,-500.0,0.00038356,30]
[339893844,1728147049623,-548.14,0.00038356,30]
[339893845,1728147049632,-255.38607,0.00038356,30]
[339893846,1728147049641,-518.60447608,0.00038356,30]
[339893847,1728147049651,-500.0,0.00038356,30]
[339893848,1728147049660,-500.0,0.00038356,30]
[339893849,1728147049669,-894.57,0.00038356,30]
[339893850,1728147049679,-500.0,0.00038356,30]
[339893851,1728147049689,-500.0,0.00038356,30]
[339893852,1728147049698,-500.0,0.00038356,30]
[339893853,1728147049707,-808.84,0.00038356,30]
[339893854,1728147049717,-500.0,0.00038356,30]
[339893855,1728147049726,-500.0,0.00038356,30]
[339893856,1728147049735,-500.0,0.00038356,30]
[339893857,1728147049745,-500.0,0.00038356,30]
[339893858,1728147049754,-500.0,0.00038356,30]
[339893859,1728147049763,-500.0,0.00038356,30]
[339893860,1728147049772,-500.0,0.00038356,30]
[339893861,1728147049782,-500.0,0.00038356,30]
[339893862,1728147049791,-500.0,0.00038356,2]
[339893863,1728147049803,-500.0,0.00038356,30]
[339893864,1728147049812,-500.0,0.00038356,30]
[339893865,1728147049821,-500.0,0.00038356,30]
[339893866,1728147049830,-500.0,0.00038356,30]
[339893867,1728147049840,-500.0,0.00038356,30]
[339893868,1728147049849,-500.0,0.00038356,30]
[339893869,1728147049858,-500.0,0.00038356,30]
[339893870,1728147049866,-744.22,0.00038356,30]
[339893871,1728147049876,-500.0,0.00038356,30]
[339893872,1728147049885,-501.14,0.00038356,30]
[339893873,1728147049894,-500.0,0.00038356,30]
[339893874,1728147049903,-795.88,0.00038356,30]
[339893875,1728147049912,-1106.31,0.00038356,30]
[339893876,1728147049921,-500.0,0.00038356,30]
[339893877,1728147049930,-500.0,0.00038356,30]
[339893878,1728147049939,-503.38784254,0.00038356,30]
[339893879,1728147049948,-500.0,0.00038356,30]
[339893880,1728147049957,-500.0,0.00038356,30]
[339893881,1728147049966,-719.91,0.00038356,30]
[339893882,1728147049975,-912.73,0.00038356,30]
[339893883,1728147049984,-789.28,0.00038356,30]
[339893884,1728147049993,-519.73,0.00038356,30]
[339893885,1728147050002,-500.0,0.00038356,30]
[339893886,1728147050011,-500.0,0.00038356,30]
[339893887,1728147050020,-1177.68,0.00038356,30]
[339893888,1728147050029,-500.0,0.00038356,30]
[339893889,1728147050038,-780.08,0.00038356,14]
[339893890,1728147050047,-500.0,0.00038356,30]
[339893891,1728147050056,-750.93,0.00038356,30]
[339893892,1728147050065,-535.24,0.00038356,30]
[339893893,1728147050075,-500.0,0.00038356,30]
[339893894,1728147050084,-669.75,0.00038356,30]
[339893895,1728147050093,-500.0,0.00038356,30]
[339893896,1728147050105,-704.169704,0.00038356,30]
[339893897,1728147050114,-500.0,0.00038356,30]
[339893898,1728147050123,-1092.22,0.00038356,30]
[339893899,1728147050132,-500.0,0.00038356,30]
[339893900,1728147050141,-1378.36,0.00038356,30]
[339893901,1728147050150,-502.24445959,0.00038356,30]
[339893902,1728147050160,-745.48,0.00038356,30]
[339893903,1728147050169,-500.0,0.00038356,30]
[339893904,1728147050179,-500.0,0.00038356,30]
[339893905,1728147050188,-500.0,0.00038356,30]
[339893906,1728147050207,-500.0,0.00038356,30]
[339893907,1728147050216,-500.0,0.00038356,30]
[339893908,1728147050225,-500.0,0.00038356,30]
[339893909,1728147050234,-579.38999569,0.00038356,30]
[339893910,1728147050243,-502.93531916,0.00038356,30]
[339893911,1728147050252,-500.0,0.00038356,30]
[339893912,1728147050262,-500.0,0.00038356,30]
[339893913,1728147050272,-500.0,0.00038356,30]
[339893914,1728147050281,-500.0,0.00038356,30]
[339893915,1728147050290,-1306.31,0.00038356,30]
[339893916,1728147050299,-500.0,0.00038356,30]
[339893917,1728147050309,-500.0,0.00038356,30]
[339893918,1728147050321,-524.51,0.00038356,30]
[339893919,1728147050330,-503.21844013,0.00038356,30]
[339893920,1728147050339,-500.0,0.00038356,30]
[339893921,1728147050348,-500.0,0.00038356,30]
[339893922,1728147050359,-151.0,0.00038356,7]
[339893923,1728147050368,-151.0,0.00038356,7]
[339893924,1728147050377,-500.0,0.00038356,30]
[339893925,1728147050386,-500.0,0.00038356,30]
[339893926,1728147050397,-513.93,0.00038356,30]
[339893927,1728147050407,-500.0,0.00038356,30]
[339893928,1728147050416,-500.0,0.00038356,30]
[339893929,1728147050426,-645.77,0.00038356,30]
[339893930,1728147050435,-833.87,0.00038356,30]
[339893931,1728147050447,-1307.93,0.00038356,30]
[339893932,1728147050456,-500.0,0.00038356,30]
[339893933,1728147050466,-500.0,0.00038356,30]
[339893934,1728147050475,-500.0,0.00038356,30]
[339893935,1728147050486,-1199.16,0.00038356,30]
[339893936,1728147050495,-500.0,0.00038356,30]
[339893937,1728147050505,-500.0,0.00038356,30]
[339893938,1728147050515,-500.0,0.00038356,30]
[339893939,1728147050524,-500.0,0.00038356,30]
[339893940,1728147050533,-500.0,0.00038356,30]
[339893941,1728147050543,-500.70441537,0.00038356,30]
[339893942,1728147050553,-500.0,0.00038356,30]
[339893943,1728147050563,-500.0,0.00038356,30]
[339893944,1728147050572,-985.84,0.00038356,30]
[339893945,1728147050581,-500.0,0.00038356,30]
[339893946,1728147050591,-500.0,0.00038356,30]
[339893947,1728147050601,-500.0,0.00038356,30]
[339893948,1728147050611,-500.0,0.00038356,30]
[339893949,1728147050620,-500.0,0.00038356,30]
[339893950,1728147050630,-1049.3,0.00038356,30]
[339893951,1728147050639,-1294.19,0.00038356,30]
[339893952,1728147050649,-687.14,0.00038356,30]
[339893953,1728147050659,-500.0,0.00038356,30]
[339893954,1728147050669,-793.27,0.00038356,30]
[339893955,1728147050679,-500.0,0.00038356,30]
[339893956,1728147050692,-500.0,0.00038356,30]
[339893957,1728147050702,-500.0,0.00038356,30]
[339893958,1728147050711,-500.0,0.00038356,30]
[339893959,1728147050720,-2888.1,0.00038356,30]
[339893960,1728147050730,-151.0,0.00038356,7]
[339893961,1728147050739,-151.0,0.00038356,7]
[339893962,1728147050748,-500.0,0.00038356,30]
[339893963,1728147050758,-500.0,0.00038356,30]
[339893964,1728147050767,-500.0,0.00038356,30]
[339893965,1728147050776,-500.0,0.00038356,30]
[339893966,1728147050785,-500.0,0.00038356,30]
[339893967,1728147050794,-989.98,0.00038356,30]
[339893968,1728147050803,-500.0,0.00038356,30]
[339893969,1728147050812,-500.0,0.00038356,30]
[339893970,1728147050821,-1432.95,0.00038356,30]
[339893971,1728147050831,-724.21,0.00038356,30]
[339893972,1728147050840,-550.68,0.00038356,30]
[339893973,1728147050997,-543.28,0.00038356,30]
[339893974,1728147051007,-500.0,0.00038356,30]
[339893975,1728147051016,-753.39,0.00038356,30]
[339893976,1728147051026,-375.47210399,0.00038356,30]
[339893977,1728147051034,-807.23,0.00038356,30]
[339893978,1728147051044,-500.0,0.00038356,30]
[339893979,1728147051053,-500.0,0.00038356,30]
[339893980,1728147051062,-500.0,0.00038356,30]
[339893981,1728147051071,-708.64,0.00038356,30]
[339893982,1728147051080,-562.5,0.00038356,30]
[339893983,1728147051089,-500.0,0.00038356,30]
[339893984,1728147051098,-500.0,0.00038356,30]
[339893985,1728147051106,-500.0,0.00038356,30]
[339893986,1728147051115,-500.0,0.00038356,30]
[339893987,1728147051124,-500.0,0.00038356,30]
[339893988,1728147051133,-500.0,0.00038356,30]
[339893989,1728147051142,-687.72,0.00038356,30]
[339893990,1728147051152,-500.0,0.00038356,30]
[339893991,1728147051161,-500.0,0.00038356,30]
[339893992,1728147051170,-1195.82,0.00038356,30]
[339893993,1728147051179,-905.32,0.00038356,7]
[339893994,1728147051188,-968.05,0.00038356,30]
[339893995,1728147051197,-1289.36,0.00038356,30]
[339893996,1728147051207,-763.68,0.00038356,30]
[339893997,1728147051216,-608.71258643,0.00038356,30]
[339893998,1728147051225,-1417.19,0.00038356,30]
[339893999,1728147051234,-500.0,0.00038356,30]
[339894000,1728147051243,-500.0,0.00038356,30]
[339894001,1728147051253,-500.0,0.00038356,30]
[339894002,1728147051263,-500.0,0.00038356,30]
[339894003,1728147051272,-1687.35,0.00038356,30]
[339894004,1728147051281,-500.0,0.00038356,30]
[339894005,1728147051290,-888.0,0.00038356,120]
[339894006,1728147051300,-500.0,0.00038356,30]
[339894007,1728147051309,-785.36,0.00038356,30]
[339894008,1728147051318,-500.0,0.00038356,30]
[339894009,1728147051327,-500.0,0.00038356,30]
[339894010,1728147051336,-500.0,0.00038356,30]
[339894011,1728147051345,-1179.64,0.00038356,30]
[339894012,1728147051354,-500.0,0.00038356,30]
[339894013,1728147051363,-500.0,0.00038356,30]
[339894014,1728147051373,-582.36,0.00038356,30]
[339894015,1728147051382,-500.0,0.00038356,30]
[339894016,1728147051391,-454.40312969,0.00038356,30]
[339894017,1728147051401,-500.0,0.00038356,30]
[339894018,1728147051410,-500.0,0.00038356,30]
[339894019,1728147051419,-643.53,0.00038356,30]
[339894020,1728147051428,-500.0,0.00038356,30]
[339894021,1728147051437,-624.64305241,0.00038356,2]
[339894022,1728147051446,-1536.92,0.00038356,30]
[339894023,1728147051455,-500.0,0.00038356,30]
[339894024,1728147051464,-500.0,0.00038356,30]
[339894025,1728147051473,-711.86,0.00038356,30]
[339894026,1728147051482,-533.33,0.00038356,30]
[339894027,1728147051491,-1213.33,0.00038356,30]
[339894028,1728147051500,-500.0,0.00038356,30]
[339894029,1728147051510,-1142.18,0.00038356,30]
[339894030,1728147051519,-500.0,0.00038356,30]
[339894031,1728147051528,-786.32,0.00038356,30]
[339894032,1728147051537,-500.0,0.00038356,30]
[339894033,1728147051546,-500.0,0.00038356,30]
[339894034,1728147051555,-1479.11,0.00038356,30]
[339894035,1728147051564,-500.0,0.00038356,30]
[339894036,1728147051574,-649.26,0.00038356,30]
[339894037,1728147051583,-500.0,0.00038356,30]
[339894038,1728147051592,-500.0,0.00038356,30]
[339894039,1728147051601,-903.52,0.00038356,30]
[339894040,1728147051610,-915.1,0.00038356,30]
[339894041,1728147051619,-500.0,0.00038356,30]
[339894042,1728147051628,-500.0,0.00038356,30]
[339894043,1728147051638,-642.95,0.00038356,30]
[339894044,1728147051647,-500.93614378,0.00038356,30]
[339894045,1728147051656,-500.0,0.00038356,30]
[339894046,1728147051666,-500.0,0.00038356,30]
[339894047,1728147051675,-931.55,0.00038356,30]
[339894048,1728147051684,-500.0,0.00038356,30]
[339894049,1728147051696,-500.0,0.00038356,30]
[339894050,1728147051705,-1521.03,0.00038356,30]
[339894051,1728147051714,-500.0,0.00038356,30]
[339894052,1728147051724,-500.0,0.00038356,30]
[339894053,1728147051733,-500.0,0.00038356,30]
[339894054,1728147051743,-1032.8,0.00038356,30]
[339894055,1728147051753,-1011.56,0.00038356,30]
[339894056,1728147051762,-500.0,0.00038356,5]
[339894057,1728147051771,-500.0,0.00038356,30]
[339894058,1728147051780,-500.0,0.00038356,30]
[339894059,1728147051789,-500.0,0.00038356,30]
[339894060,1728147051798,-500.0,0.00038356,30]
[339894061,1728147051807,-901.49,0.00038356,30]
[339894062,1728147051817,-500.0,0.00038356,30]
[339894063,1728147051826,-1061.61,0.00038356,30]
[339894064,1728147051835,-1304.21,0.00038356,30]
[339894065,1728147051845,-701.97,0.00038356,30]
[339894066,1728147051854,-500.0,0.00038356,30]
[339894067,1728147051863,-534.36,0.00038356,30]
[339894068,1728147051872,-589.66,0.00038356,30]
[339894069,1728147051881,-512.82,0.00038356,30]
[339894070,1728147051891,-500.0,0.00038356,30]
[339894071,1728147051899,-500.0,0.00038356,30]
[339894072,1728147051908,-500.0,0.00038356,30]
[339894073,1728147051917,-500.0,0.00038356,30]
[339894074,1728147051927,-1198.94,0.00038356,30]
[339894075,1728147051935,-500.0,0.00038356,30]
[339894076,1728147051946,-836.31,0.00038356,30]
[339894077,1728147051955,-908.97,0.00038356,30]
[339894078,1728147051964,-714.05,0.00038356,30]
[339894079,1728147051973,-500.0,0.00038356,30]
[339894080,1728147051982,-500.0,0.00038356,30]
[339894081,1728147051991,-787.9,0.00038356,30]
[339894082,1728147052001,-502.40637452,0.00038356,30]
[339894083,1728147052010,-500.76956438,0.00038356,30]
[339894084,1728147052019,-500.0,0.00038356,30]
[339894085,1728147052028,-530.83,0.00038356,30]
[339894086,1728147052037,-500.0,0.00038356,30]
[339894087,1728147052046,-1485.49,0.00038356,30]
[339894088,1728147052055,-500.0,0.00038356,30]
[339894089,1728147052064,-500.0,0.00038356,30]
[339894090,1728147052073,-500.0,0.00038356,30]
[339894091,1728147052082,-500.0,0.00038356,30]
[339894092,1728147052091,-500.0,0.00038356,30]
[339894093,1728147052100,-500.0,0.00038356,30]
[339894094,1728147052110,-500.0,0.00038356,30]
[339894095,1728147052119,-518.08,0.00038356,30]
[339894096,1728147052128,-763.04,0.00038356,30]
[339894097,1728147052137,-500.0,0.00038356,30]
[339894098,1728147052147,-500.0,0.00038356,30]
[339894099,1728147052156,-500.0,0.00038356,30]
[339894100,1728147052165,-500.0,0.00038356,30]
[339894101,1728147052173,-500.0,0.00038356,30]
[339894102,1728147052182,-563.43,0.00038356,30]
[339894103,1728147052193,-612.29,0.00038356,30]
[339894104,1728147052201,-822.39,0.00038356,30]
[339894105,1728147052210,-500.0,0.00038356,30]
[339894106,1728147052219,-1306.65,0.00038356,30]
[339894107,1728147052228,-1233.21,0.00038356,30]
[339894108,1728147052237,-583.48,0.00038356,30]
[339894109,1728147052246,-500.0,0.00038356,30]
[339894110,1728147052255,-500.0,0.00038356,30]
[339894111,1728147052266,-868.45,0.00038356,30]
[339894112,1728147052276,-732.59,0.00038356,30]
[339894113,1728147052285,-500.0,0.00038356,30]
[339894114,1728147052294,-500.0,0.00038356,30]
[339894115,1728147052303,-500.0,0.00038356,30]
[339894116,1728147052312,-500.0,0.00038356,30]
[339894117,1728147052324,-500.0,0.00038356,30]
[339894118,1728147052334,-500.0,0.00038356,30]
[339894119,1728147052343,-500.0,0.00038356,30]
[339894120,1728147052352,-1321.45,0.00038356,30]
[339894121,1728147052363,-471.13843511,0.00038356,30]
[339894122,1728147052371,-500.0,0.00038356,30]
[339894123,1728147052381,-500.0,0.00038356,30]
[339894124,1728147052390,-528.8,0.00038356,30]
[339894125,1728147052399,-658.55,0.00038356,30]
[339894126,1728147052408,-500.0,0.00038356,30]
[339894127,1728147052417,-500.0,0.00038356,30]
[339894128,1728147052426,-500.0,0.00038356,30]
[339894129,1728147052435,-993.81,0.00038356,30]
[339894130,1728147052445,-500.0,0.00038356,30]
[339894131,1728147052454,-500.0,0.00038356,30]
[339894132,1728147052463,-500.0,0.00038356,30]
[339894133,1728147052472,-500.0,0.00038356,30]
[339894134,1728147052480,-500.0,0.00038356,30]
[339894135,1728147052490,-500.0,0.00038356,30]
[339894136,1728147052499,-500.0,0.00038356,30]
[339894137,1728147052508,-500.0,0.00038356,30]
[339894138,1728147052517,-953.14,0.00038356,30]
[339894139,1728147052526,-500.0,0.00038356,30]
[339894140,1728147052535,-500.0,0.00038356,30]
[339894141,1728147052544,-694.83,0.00038356,30]
[339894142,1728147052553,-1392.91,0.00038356,30]
[339894143,1728147052562,-500.0,0.00038356,30]
[339894144,1728147052571,-500.0,0.00038356,30]
[339894145,1728147052580,-500.0,0.00038356,30]
[339894146,1728147052590,-500.0,0.00038356,30]
[339894147,1728147052599,-500.0,0.00038356,30]
[339894148,1728147052609,-500.0,0.00038356,30]
[339894149,1728147052619,-698.41,0.00038356,30]
[339894150,1728147052629,-419.58732869,0.00038356,30]
[339894151,1728147052637,-500.0,0.00038356,30]
[339894152,1728147052647,-500.0,0.00038356,30]
[339894153,1728147052656,-500.0,0.00038356,30]
[339894154,1728147052666,-500.0,0.00038356,30]
[339894155,1728147052675,-771.14,0.00038356,30]
[339894156,1728147052684,-885.57,0.00038356,30]
[339894157,1728147052693,-500.0,0.00038356,30]
[339894158,1728147052702,-500.0,0.00038356,30]
[339894159,1728147052711,-500.0,0.00038356,30]
[339894160,1728147052721,-500.0,0.00038356,30]
[339894161,1728147052730,-500.0,0.00038356,30]
[339894162,1728147052739,-1011.8,0.00038356,30]
[339894163,1728147052748,-563.02,0.00038356,30]
[339894164,1728147052757,-702.92,0.00038356,30]
[339894165,1728147052767,-500.0,0.00038356,30]
[339894166,1728147052776,-500.0,0.00038356,30]
[339894167,1728147052785,-1294.33,0.00038356,30]
[339894168,1728147052794,-690.04,0.00038356,30]
[339894169,1728147052803,-1565.99,0.00038356,30]
[339894170,1728147052813,-918.37,0.00038356,30]
[339894171,1728147052822,-500.0,0.00038356,30]
[339894172,1728147052831,-666.23,0.00038356,30]
[339894173,1728147052840,-202.44919993,0.00038356,30]
[339894174,1728147052849,-500.0,0.00038356,30]
[339894175,1728147052859,-894.45,0.00038356,30]
[339894176,1728147052868,-500.0,0.00038356,30]
[339894177,1728147052877,-729.96,0.00038356,30]
[339894178,1728147052887,-500.0,0.00038356,30]
[339894179,1728147052896,-762.45,0.00038356,30]
[339894180,1728147052905,-500.0,0.00038356,30]
[339894181,1728147052915,-1037.04,0.00038356,30]
[339894182,1728147052925,-588.86,0.00038356,30]
[339894183,1728147052934,-500.0,0.00038356,30]
[339894184,1728147052944,-500.0,0.00038356,30]
[339894185,1728147052953,-500.0,0.00038356,30]
[339894186,1728147052963,-500.0,0.00038356,30]
[339894187,1728147052972,-500.0,0.00038356,30]
[339894188,1728147052981,-500.0,0.00038356,30]
[339894189,1728147052991,-922.09,0.00038356,30]
[339894190,1728147053001,-500.0,0.00038356,30]
[339894191,1728147053010,-500.0,0.00038356,30]
[339894192,1728147053019,-500.0,0.00038356,30]
[339894193,1728147053028,-500.0,0.00038356,30]
[339894194,1728147053172,-500.0,0.00038356,30]
[339894195,1728147053201,-500.0,0.00038356,30]
[339894196,1728147053210,-500.0,0.00038356,30]
[339894197,1728147053220,-500.0,0.00038356,30]
[339894198,1728147053229,-500.0,0.00038356,30]
[339894199,1728147053238,-500.0,0.00038356,30]
[339894200,1728147053247,-500.0,0.00038356,30]
[339894201,1728147053256,-1207.02,0.00038356,30]
[339894202,1728147053266,-500.0,0.00038356,30]
[339894203,1728147053275,-1060.1,0.00038356,30]
[339894204,1728147053284,-500.0,0.00038356,30]
[339894205,1728147053291,-500.0,0.00038356,2]
[339894206,1728147053299,-500.0,0.00038356,30]
[339894207,1728147053308,-500.0,0.00038356,30]
[339894208,1728147053318,-500.0,0.00038356,30]
[339894209,1728147053327,-501.25,0.00038356,30]
[339894210,1728147053336,-500.0,0.00038356,30]
[339894211,1728147053346,-525.19,0.00038356,30]
[339894212,1728147053355,-500.0,0.00038356,30]
[339894213,1728147053364,-500.0,0.00038356,30]
[339894214,1728147053373,-668.81,0.00038356,30]
[339894215,1728147053382,-500.0,0.00038356,30]
[339894216,1728147053392,-648.61,0.00038356,30]
[339894217,1728147053401,-500.0,0.00038356,30]
[339894218,1728147053410,-500.0,0.00038356,30]
[339894219,1728147053419,-500.0,0.00038356,30]
[339894220,1728147053428,-500.0,0.00038356,30]
[339894221,1728147053438,-500.0,0.00038356,30]
[339894222,1728147053449,-1480.12,0.00038356,30]
[339894223,1728147053459,-500.0,0.00038356,30]
[339894224,1728147053468,-500.0,0.00038356,30]
[339894225,1728147053477,-361.2465271,0.00038356,30]
[339894226,1728147053486,-500.0,0.00038356,30]
[339894227,1728147053495,-500.0,0.00038356,30]
[339894228,1728147053504,-1830.42,0.00038356,30]
[339894229,1728147053513,-500.0,0.00038356,30]
[339894230,1728147053521,-500.0,0.00038356,30]
[339894231,1728147053530,-500.0,0.00038356,30]
[339894232,1728147053539,-692.2,0.00038356,30]
[339894233,1728147053548,-1094.29,0.00038356,30]
[339894234,1728147053558,-1171.31,0.00038356,30]
[339894235,1728147053567,-500.0,0.00038356,30]
[339894236,1728147053576,-500.0,0.00038356,30]
[339894237,1728147053585,-500.0,0.00038356,30]
[339894238,1728147053595,-1156.11,0.00038356,30]
[339894239,1728147053604,-980.64,0.00038356,30]
[339894240,1728147053614,-993.33,0.00038356,30]
[339894241,1728147053624,-500.0,0.00038356,30]
[339894242,1728147053633,-759.97,0.00038356,30]
[339894243,1728147053643,-500.0,0.00038356,30]
[339894244,1728147053652,-500.0,0.00038356,30]
[339894245,1728147053662,-500.0,0.00038356,30]
[339894246,1728147053671,-500.0,0.00038356,30]
[339894247,1728147053680,-809.87,0.00038356,30]
[339894248,1728147053691,-500.0,0.00038356,30]
[339894249,1728147053700,-500.0,0.00038356,30]
[339894250,1728147053709,-500.0,0.00038356,30]
[339894251,1728147053718,-500.0,0.00038356,30]
[339894252,1728147053728,-500.0,0.00038356,30]
[339894253,1728147053737,-500.0,0.00038356,30]
[339894254,1728147053747,-500.0,0.00038356,30]
[339894255,1728147053756,-1128.79,0.00038356,30]
[339894256,1728147053765,-505.45280502,0.00038356,30]
[339894257,1728147053774,-620.59,0.00038356,30]
[339894258,1728147053784,-500.0,0.00038356,30]
[339894259,1728147053793,-1212.72,0.00038356,30]
[339894260,1728147053802,-1002.95,0.00038356,30]
[339894261,1728147053812,-737.61,0.00038356,30]
[339894262,1728147053821,-500.0,0.00038356,30]
[339894263,1728147053830,-524.73,0.00038356,30]
[339894264,1728147053840,-500.0,0.00038356,30]
[339894265,1728147053850,-500.0,0.00038356,30]
[339894266,1728147053859,-500.0,0.00038356,30]
[339894267,1728147053869,-1377.95,0.00038356,30]
[339894268,1728147053878,-1543.57,0.00038356,30]
[339894269,1728147053888,-813.84,0.00038356,30]
[339894270,1728147053897,-531.1,0.00038356,30]
[339894271,1728147053907,-500.0,0.00038356,30]
[339894272,1728147053916,-500.0,0.00038356,30]
[339894273,1728147053925,-500.0,0.00038356,30]
[339894274,1728147053935,-500.0,0.00038356,30]
[339894275,1728147053945,-500.0,0.00038356,30]
[339894276,1728147053954,-961.07,0.00038356,30]
[339894277,1728147053964,-500.0,0.00038356,30]
[339894278,1728147053974,-784.98,0.00038356,30]
[339894279,1728147053983,-500.0,0.00038356,30]
[339894280,1728147053992,-711.97,0.00038356,30]
[339894281,1728147054002,-917.69,0.00038356,30]
[339894282,1728147054011,-500.0,0.00038356,30]
[339894283,1728147054021,-500.0,0.00038356,30]
[339894284,1728147054030,-500.0,0.00038356,30]
[339894285,1728147054039,-500.0,0.00038356,30]
[339894286,1728147054049,-500.0,0.00038356,30]
[339894287,1728147054058,-500.0,0.00038356,30]
[339894288,1728147054068,-500.0,0.00038356,30]
[339894289,1728147054077,-906.22,0.00038356,30]
[339894290,1728147054087,-782.36,0.00038356,30]
[339894291,1728147054097,-677.3,0.00038356,30]
[339894292,1728147054106,-500.0,0.00038356,30]
[339894293,1728147054116,-645.50485911,0.00038356,30]
[339894294,1728147054125,-500.0,0.00038356,30]
[339894295,1728147054134,-151.0,0.00038356,7]
[339894296,1728147054143,-500.0,0.00038356,30]
[339894297,1728147054153,-151.0,0.00038356,7]
[339894298,1728147054172,-500.0,0.00038356,30]
[339894299,1728147054188,-910.94,0.00038356,30]
[339894300,1728147054205,-1205.88,0.00038356,30]
[339894301,1728147054224,-496.93517681,0.00038356,30]
[339894302,1728147054241,-1344.47,0.00038356,30]
[339894303,1728147054259,-500.0,0.00038356,30]
[339894304,1728147054276,-542.61,0.00038356,30]
[339894305,1728147054290,-814.32,0.00038356,30]
[339894306,1728147054307,-500.0,0.00038356,30]
[339894307,1728147054329,-500.0,0.00038356,30]
[339894308,1728147054346,-500.0,0.00038356,30]
[339894309,1728147054359,-500.0,0.00038356,30]
[339894310,1728147054378,-500.0,0.00038356,30]
[339894311,1728147054393,-151.0,0.00038356,7]
[339894312,1728147054409,-500.0,0.00038356,30]
[339894313,1728147054423,-500.0,0.00038356,30]